Cogmind - Beta 13 @@@ ROGUE MODE // 2024.07.19 @ 18:02:07 Player: celerysam Result: Destroyed by Y-64 Sentinel with Wave Gun Performance ------------- Evolutions (6) 3000 Regions Visited (14) 2800 Robots Destroyed (46) 230 Value Destroyed (1457) 1457 Prototype IDs (7) 140 Alien Tech Used (0) 0 Bonus (2654) 2654 TOTAL SCORE: 10281 Bonus ------- Pacifist 200 High Alert Combat Kills 4 Follower Combat Kills 150 Awakened Behemoth Slayer 1000 Entered Garrisons 200 Entered DSFs 500 Met Imprinter 300 Was Imprinted 300 Cogmind --------- Core Integrity 0/1150 Matter 300/300 Energy 60/100 System Corruption 0% Temperature Cool (46) Movement Core (50) Location -4/Factory Parts ------- > --- POWER (3) -------- (None) > --- PROPULSION (8) --- (None) > --- UTILITY (4) ------ Advanced Targeting Computer Hacking Suite > --- WEAPON (4) ------- CR-A16's Behemoth Slayer > --- INVENTORY (5) ---- Advanced Heat Sink Coolant Injector Improved Reaction Control System Railgun Improved Datajack Peak State ------------ > --- POWER ------------ Neutrino Core Zionite Light DM Reactor > --- PROPULSION ------- Improved Hover Unit Cooled Airjet Cooled Airjet Combat Airjet Zionite Glidesys I Zionite Glidesys I > --- UTILITY ---------- Advanced Targeting Computer Transmission Jammer Hacking Suite System Shield > --- WEAPON ----------- Improved Datajack Phasing Sabre CR-A16's Behemoth Slayer > --- INVENTORY -------- Xenon Bombardment Thruster Nuclear Pulse Thruster Coolant Injector Improved Reaction Control System Improved Proton Missile Launcher [Rating: 76] Favorites ----------- Power Light Nuclear Core Engine Ion Engine Power Core Light Nuclear Core Reactor Light Quantum Reactor Propulsion Airjet Treads Armored Treads Leg Titanium Leg Wheel Compact Wheel Hover Unit Airjet Flight Unit VTOL Module Utility Transmission Jammer Device Transmission Jammer Storage Small Storage Unit Processor Advanced Targeting Computer Hackware Hacking Suite Protection Layered Light Armor Plating Weapon Mini Grenade Launcher Energy Gun Medium Laser Ballistic Gun Assault Rifle Ballistic Cannon Advanced Assault Cannon Launcher Mini Grenade Launcher Impact Weapon Power Maul Slashing Weapon Phasing Sabre Piercing Weapon CR-A16's Behemoth Slayer Special Melee Weapon Improved Datajack Build | -11 -10 -9 -9 -8 -7 -7 -7 -7 -6 -6 -6 -5 -5 -4 ------- Run | Yrd Mat Mat Min Mat Fac Low Low Zio Pro Fac Gar Fac DSF Fac Slots Evolved 12 | . . 2 . 2 2 . . . . 2 . 2 . 2 Power 2 | . . . . 1 . . . . . . . 1 . . Propulsion 6 | . . 2 . . 2 . . . . . . . . 2 Utility 2 | . . . . 1 . . . . . 1 . . . . Weapon 2 | . . . . . . . . . . 1 . 1 . . Parts Attached 103 | 7 . 14 11 8 14 3 4 4 8 19 1 . . 10 Power 18 | 1 . 2 2 . 3 1 1 . 2 4 . . . 2 Engine 5 | 1 . 1 1 . . . . . 1 1 . . . . Core 11 | . . 1 1 . 3 1 1 . 1 2 . . . 1 Reactor 2 | . . . . . . . . . . 1 . . . 1 Propulsion 47 | 3 . 9 3 3 6 1 1 3 2 10 . . . 6 Treads 5 | . . 2 . . 1 . . . 2 . . . . . Leg 13 | 2 . . 1 . 3 . 1 2 . 1 . . . 3 Wheel 5 | 1 . 2 . . . . . . . 2 . . . . Hover 12 | . . . . 3 2 . . . . 7 . . . . Flight 12 | . . 5 2 . . 1 . 1 . . . . . 3 Utility 12 | 1 . 1 3 2 1 . 1 . 1 2 . . . . Device 5 | . . 1 2 . 1 . . . 1 . . . . . Storage 1 | 1 . . . . . . . . . . . . . . Processor 1 | . . . . . . . 1 . . . . . . . Hackware 3 | . . . 1 . . . . . . 2 . . . . Protection 2 | . . . . 2 . . . . . . . . . . Artifact . | . . . . . . . . . . . . . . . Weapon 26 | 2 . 2 3 3 4 1 1 1 3 3 1 . . 2 Energy Gun 4 | 1 . . . . 1 . . . . 1 . . . 1 Energy Cannon . | . . . . . . . . . . . . . . . Ballistic Gun 3 | 1 . 1 1 . . . . . . . . . . . Ballistic Cannon 6 | . . 1 . 1 2 . . . 2 . . . . . Launcher 4 | . . . 1 1 . 1 . . . . 1 . . . Special Weapon . | . . . . . . . . . . . . . . . Impact Weapon 3 | . . . 1 1 . . 1 . . . . . . . Slashing Weapon 4 | . . . . . 1 . . 1 . 1 . . . 1 Piercing Weapon 1 | . . . . . . . . . 1 . . . . . Special Melee Weapon 1 | . . . . . . . . . . 1 . . . . Unidentified Prototypes 6 | . . 1 1 . 1 . . . . 3 . . . . Corrupted Parts 1 | . . . . . . . . . 1 . . . . . System Corruption 3 | . . . . . . . . . 3 . . . . . Parts Lost 58 | . . 10 6 3 . 5 4 . 12 . 1 . . 17 Power 12 | . . 2 1 1 . 1 1 . 3 . . . . 3 Propulsion 32 | . . 4 3 2 . 3 2 . 6 . 1 . . 11 Utility 7 | . . 1 1 . . 1 . . 2 . . . . 2 Weapon 7 | . . 3 1 . . . 1 . 1 . . . . 1 Highest Loss Streak 10 | . . 10 5 3 . 3 4 . 10 . 1 . . 8 To Critical Strikes . | . . . . . . . . . . . . . . . Average Slot Usage (%) 85 | . 85 80 60 88 96 93 74 96 94 72 97 82 82 56 Engine 1 | . 14 8 4 7 . . . . . . . . . . Core 9 | . . . 2 . 12 13 11 15 13 2 6 5 5 3 Treads 4 | . . 5 . . 3 7 7 7 9 . . . . . Leg 13 | . 28 13 4 6 7 . 5 22 21 2 . . . 7 Wheel 1 | . . 14 . . . . . . . 3 . . . . Hover 10 | . . . . 8 28 27 11 7 4 18 37 29 29 4 Flight 5 | . . 3 24 21 3 6 3 5 6 . . . . . Device 11 | . . 5 6 9 12 15 15 15 13 6 6 5 5 4 Storage 1 | . 14 11 2 . . . . . . . . . . . Processor 4 | . . . . . . . 2 7 7 6 6 5 5 5 Hackware 2 | . . . 3 9 2 . . . . 12 13 11 11 9 Protection 1 | . . . . 8 7 5 . . . . . . . . Energy Gun 1 | . 14 6 . . . . . . . 3 . . . 2 Ballistic Gun 1 | . 14 10 3 . . . . . . . . . . . Ballistic Cannon 1 | . . 1 . 6 7 . . . 2 . . . . . Launcher 3 | . . . 4 2 . 6 7 7 4 . 3 5 5 . Slashing Weapon 4 | . . . . . 6 7 4 6 4 1 2 . . 4 Piercing Weapon 1 | . . . . . . . . . 2 6 6 5 5 5 Naked Turns . | . . . . . . . . . . . . . . . Heaviest Build 36 | 14 14 15 11 16 27 27 18 16 35 32 36 36 36 36 Greatest Support 63 | 20 20 40 19 30 47 47 24 61 61 63 63 49 49 60 Greatest Overweight (x) 10 | 1 . . . . . . . . 1 1 . . . 10 Average Overweight (x) . | . . . . . . . . . . . . . . . Largest Inventory Capacity 8 | 8 8 8 8 5 5 5 5 5 5 5 5 5 5 5 Average Capacity 5 | 6 8 8 5 5 5 5 5 5 5 5 5 5 5 5 Most Carried 8 | 6 8 8 7 5 5 5 5 5 5 5 5 5 5 5 Average Carried 5 | 4 7 7 4 4 4 4 4 4 4 4 5 5 5 4 Final Capacity 8 | 8 8 8 5 5 5 5 5 5 5 5 5 5 5 5 Final Carried 8 | 6 8 6 4 4 5 5 5 5 5 5 5 5 5 5 Class Distribution -------------------- 45% | Derelict-Mutant 34% | Mutant 18% | Hacker-Mutant Dominant Class ---------------- Mutant | -10/Materials Mutant | -9/Materials Mutant | -9/Mines Mutant | -8/Materials Mutant | -7/Factory Mutant | -7/Lower Caves Mutant | -7/Lower Caves Derelict-Mutant | -7/Zion Derelict-Mutant | -6/Proximity Caves Hacker-Mutant | -6/Factory Hacker-Mutant | -6/Garrison Hacker-Mutant | -5/Factory Hacker-Mutant | -5/DSF Hacker-Mutant | -4/Factory Resources | -11 -10 -9 -9 -8 -7 -7 -7 -7 -6 -6 -6 -5 -5 -4 ----------- Run | Yrd Mat Mat Min Mat Fac Low Low Zio Pro Fac Gar Fac DSF Fac Matter Collected 1529 | 179 . 190 249 185 . 266 27 53 90 170 . . . 120 Remotely . | . . . . . . . . . . . . . . . Salvage Created 1239 | . . 316 27 53 . 72 . . 139 90 146 . . 396 Parts 93 | . . 28 7 8 . 6 . . 12 8 13 . . 11 Haulers Intercepted . | . . . . . . . . . . . . . . . Recyclers Shooed . | . . . . . . . . . . . . . . . Parts Field Recycled . | . . . . . . . . . . . . . . . Retrieved Matter . | . . . . . . . . . . . . . . . Parts Self-Destructed 11 | . . . . . . 5 . . 6 . . . . . Prevented 5 | . . . . . . 1 . . 4 . . . . . Kills | -11 -10 -9 -9 -8 -7 -7 -7 -7 -6 -6 -6 -5 -5 -4 ------- Run | Yrd Mat Mat Min Mat Fac Low Low Zio Pro Fac Gar Fac DSF Fac Combat Hostiles Destroyed 44 | . . 12 6 3 . 9 . . 5 1 2 . . 6 Melee 11 | . . . 2 . . . . . 2 1 . . . 6 Guns 10 | . . 10 . . . . . . . . . . . . Cannons 5 | . . 2 . 3 . . . . . . . . . . AOE 17 | . . . 4 . . 9 . . 3 . 1 . . . Classes Destroyed 7 | . . 4 . . . . . . 1 1 1 . . . Builder 1 | . . 1 . . . . . . . . . . . . Operator 1 | . . . . . . . . . . 1 . . . . Swarmer 29 | . . 7 6 2 . 9 . . 4 . . . . 1 Grunt 9 | . . 4 . . . . . . . . . . . 5 Sentry 3 | . . 1 . 1 . . . . . 1 . . . . Hunter 1 | . . . . . . . . . . . 1 . . . Behemoth 2 | . . . . . . . . . 1 . 1 . . . Best Kill Streak 13 | . . 13 3 2 . 4 . . 4 1 2 . . 3 Combat Bots Only 12 | . . 12 3 2 . 4 . . 4 1 2 . . 3 Max Kills in Single Turn 3 | . . 2 2 1 . 3 . . 1 1 1 . . 1 Gunslinging 1 | . . 1 . . . . . . . . . . . . Exploded 3 | . . . 2 . . 3 . . 1 . 1 . . . Melee 1 | . . . 1 . . . . . 1 1 . . . 1 Uniques/NPCs Destroyed . | . . . . . . . . . . . . . . . Combat | -11 -10 -9 -9 -8 -7 -7 -7 -7 -6 -6 -6 -5 -5 -4 -------- Run | Yrd Mat Mat Min Mat Fac Low Low Zio Pro Fac Gar Fac DSF Fac Hostile Shots Fired 820 | . 4 133 63 59 90 27 27 . 143 18 22 . 22 212 Missed 300 | . 1 29 30 22 39 12 15 . 45 9 9 . 17 72 Damage Taken 7724 | . 41 1203 470 494 438 287 248 . 1655 75 255 . 68 2490 Core 2290 | . . 212 163 69 26 64 90 . 396 30 63 . 12 1165 Absorbed by Shields 140 | . . . . . . . . . . . . . . 140 Regen/Repaired (Parts) 54 | . . . . . . . . 54 . . . . . . Core Remaining (%) 71 | 100 100 . 6 87 . . . . 17 . 89 . 98 . Volleys Fired 75 | . 4 30 10 9 4 9 . . 3 . 4 1 . 1 Largest 2 | . 2 2 2 1 1 1 . . 1 . 1 1 . 1 Hottest 75 | . 70 73 50 48 48 30 . . 30 . 43 43 . 75 Shots Fired 100 | . 8 49 12 9 4 9 . . 3 . 4 1 . 1 Gun 54 | . 8 38 7 . . . . . . . . . . 1 Cannon 24 | . . 11 . 9 4 . . . . . . . . . Launcher 22 | . . . 5 . . 9 . . 3 . 4 1 . . Special . | . . . . . . . . . . . . . . . Kinetic 65 | . 4 41 7 9 4 . . . . . . . . . Thermal 13 | . 4 8 . . . . . . . . . . . 1 Explosive 17 | . . . 5 . . 9 . . 3 . . . . . Electromagnetic 5 | . . . . . . . . . . . 4 1 . . Robot Hit Streak 5 | . 1 5 5 2 2 3 . . . . 3 . . 1 Robot Miss Streak 5 | . 5 3 2 1 1 2 . . . . 1 2 . . Penetration Max . | . . . . . . . . . . . . . . . Secondary Targets 1 | . . 1 . . . . . . . . . . . . Max Gunslinging Chain 1 | . . 1 . . . . . . . . . . . . Shots Hit Robots 91 | . 1 30 11 6 4 3 . . 5 4 4 . . 23 Core Hits 62 | . . 15 7 3 1 15 . . 6 2 2 . . 11 Critical Kills 1 | . . . 1 . . . . . . . . . . . Critical Parts Destroyed . | . . . . . . . . . . . . . . . Critical Strikes 11 | . . 1 1 . . . . . 2 1 . . . 6 Burn 1 | . . 1 . . . . . . . . . . . . Smash 1 | . . . 1 . . . . . . . . . . . Sever 6 | . . . . . . . . . . . . . . 6 Impale 3 | . . . . . . . . . 2 1 . . . . Melee Attacks 67 | . . . 7 . 4 . . . 17 5 3 . . 31 Impact 7 | . . . 7 . . . . . . . . . . . Slashing 33 | . . . . . 4 . . . 6 1 . . . 22 Piercing 27 | . . . . . . . . . 11 4 3 . . 9 Sneak Attacks 1 | . . . . . . . . . . 1 . . . . Combat Hostiles 1 | . . . . . . . . . . 1 . . . . Follow-up Attacks 3 | . . . . . . . . . . 1 . . . 2 Damage Inflicted 3778 | . 12 505 453 154 141 888 . . 419 174 118 . . 914 Guns 473 | . 12 373 65 . . . . . . . . . . 23 Cannons 360 | . . 132 . 154 74 . . . . . . . . . Explosions 1480 | . . . 222 . . 888 . . 252 . 118 . . . Melee 1465 | . . . 166 . 67 . . . 167 174 . . . 891 Ramming . | . . . . . . . . . . . . . . . Kinetic 733 | . 12 428 65 154 74 . . . . . . . . . Thermal 100 | . . 77 . . . . . . . . . . . 23 Explosive 1362 | . . . 222 . . 888 . . 252 . . . . . Electromagnetic 118 | . . . . . . . . . . . 118 . . . Impact 166 | . . . 166 . . . . . . . . . . . Slashing 826 | . . . . . 67 . . . 37 49 . . . 673 Piercing 473 | . . . . . . . . . 130 125 . . . 218 Highest Corruption 3 | . . . 3 . . . . . 3 . . . . . Average Corruption 3 | . . . 3 . . . . . 3 . . . . . Corruption Purged . | . . . . . . . . . . . . . . . Corruption Blocked . | . . . . . . . . . . . . . . . Effects 7 | . . . 5 . . . . . 2 . . . . . Message Errors 1 | . . . . . . . . . 1 . . . . . Matter Fused 4 | . . . 4 . . . . . . . . . . . Parts Fused 1 | . . . . . . . . . 1 . . . . . Alerts 1 | . . . 1 . . . . . . . . . . . Overload Shots . | . . . . . . . . . . . . . . . Overflow Damage 196 | . . 15 68 4 . 58 . . . 51 . . . . Projectiles 19 | . . 15 . 4 . . . . . . . . . . Explosions 108 | . . . 50 . . 58 . . . . . . . . Melee 69 | . . . 18 . . . . . . 51 . . . . Knockbacks 3 | . . 3 . . . . . . . . . . . . Impact . | . . . . . . . . . . . . . . . Kinetic 2 | . . 2 . . . . . . . . . . . . Secondary 1 | . . 1 . . . . . . . . . . . . Self-Inflicted Damage 131 | . . . 63 . . 64 . . . . 4 . . . Shots 6 | . . . 3 . . 2 . . . . 1 . . . Rammed . | . . . . . . . . . . . . . . . Targets Rammed . | . . . . . . . . . . . . . . . Kicked . | . . . . . . . . . . . . . . . Crushed . | . . . . . . . . . . . . . . . Highest Temperature 150 | . 18 27 . 78 150 25 . . 2 . 99 20 . 29 Average Temperature 41 | . 8 10 . 30 76 12 . . 2 . 57 13 . 14 Received Heat Transfer 1905 | . 27 498 107 180 168 . 24 . 237 18 . . 24 622 Siege Activations . | . . . . . . . . . . . . . . . Robots Corrupted . | . . . . . . . . . . . . . . . Combat Hostiles . | . . . . . . . . . . . . . . . Parts Fried . | . . . . . . . . . . . . . . . Impact Corruptions 1 | . . . 1 . . . . . . . . . . . Robots Melted . | . . . . . . . . . . . . . . . Combat Hostiles . | . . . . . . . . . . . . . . . Parts Melted . | . . . . . . . . . . . . . . . Heat Transferred 346 | . . 296 . . . . . . . . . . . 50 Parts Sabotaged . | . . . . . . . . . . . . . . . Parts Stolen . | . . . . . . . . . . . . . . . Parts Stripped . | . . . . . . . . . . . . . . . Power Chain Reactions . | . . . . . . . . . . . . . . . Alert | -11 -10 -9 -9 -8 -7 -7 -7 -7 -6 -6 -6 -5 -5 -4 ------- Run | Yrd Mat Mat Min Mat Fac Low Low Zio Pro Fac Gar Fac DSF Fac Peak Influence 480 | . 30 363 444 480 248 . . . . 111 175 121 99 206 Initial 218 | . . 12 141 172 218 . . . . . 77 91 84 51 Average 135 | . 19 140 226 262 201 . . . . 52 121 102 88 132 Maximum Alert Level 2 | . . 1 2 2 1 . . . . . . . . 1 Low Security (%) 67 | 100 100 63 58 55 15 . . . . 100 100 100 100 74 Level 1 29 | . . 36 20 29 84 . . . . . . . . 25 Level 2 3 | . . . 21 14 . . . . . . . . . . Level 3 . | . . . . . . . . . . . . . . . Level 4 . | . . . . . . . . . . . . . . . Level 5 . | . . . . . . . . . . . . . . . High Security . | . . . . . . . . . . . . . . . Max Security . | . . . . . . . . . . . . . . . Squads Dispatched 8 | . 1 2 . 2 1 . . . . 1 . . 1 . Investigation 1 | . . . . . . . . . . 1 . . . . Extermination . | . . . . . . . . . . . . . . . Reinforcement 7 | . 1 2 . 2 1 . . . . . . . 1 . Assault . | . . . . . . . . . . . . . . . Garrison . | . . . . . . . . . . . . . . . Intercept . | . . . . . . . . . . . . . . . Searches Triggered . | . . . . . . . . . . . . . . . Construction Impeded . | . . . . . . . . . . . . . . . Haulers Reinforced . | . . . . . . . . . . . . . . . Active Scanning Responses . | . . . . . . . . . . . . . . . Cargo Convoy Interrupts . | . . . . . . . . . . . . . . . Stealth | -11 -10 -9 -9 -8 -7 -7 -7 -7 -6 -6 -6 -5 -5 -4 --------- Run | Yrd Mat Mat Min Mat Fac Low Low Zio Pro Fac Gar Fac DSF Fac Distress Signals 4 | . . 3 . 1 . . . . . . . . . . Communications Jammed 3 | . . . . . 1 . . . . 1 . . . 1 Distress Signals 1 | . . . . . 1 . . . . . . . . . Times Spotted 159 | . 4 26 36 24 8 8 1 . 15 7 7 1 3 19 Peak Tracking Total 22 | . 3 10 22 14 4 3 1 . 8 2 7 1 3 7 Tactical Retreats 24 | . . 4 4 3 1 1 1 . 2 2 1 . 1 4 Traps | -11 -10 -9 -9 -8 -7 -7 -7 -7 -6 -6 -6 -5 -5 -4 ------- Run | Yrd Mat Mat Min Mat Fac Low Low Zio Pro Fac Gar Fac DSF Fac Traps Triggered 2 | . . . . . . . . . . . . . . 2 Indirectly . | . . . . . . . . . . . . . . . Trap Hack Attempts . | . . . . . . . . . . . . . . . Triggered . | . . . . . . . . . . . . . . . Disarmed . | . . . . . . . . . . . . . . . Reprogrammed . | . . . . . . . . . . . . . . . Reused . | . . . . . . . . . . . . . . . Traps Extracted . | . . . . . . . . . . . . . . . Installed . | . . . . . . . . . . . . . . . Triggered 2 | . . . . . . 2 . . . . . . . . Machines | -11 -10 -9 -9 -8 -7 -7 -7 -7 -6 -6 -6 -5 -5 -4 ---------- Run | Yrd Mat Mat Min Mat Fac Low Low Zio Pro Fac Gar Fac DSF Fac Machines Disabled 5 | . . . 2 . . . . . . . 2 1 . . Max in Single Turn 2 | . . . 2 . . . . . . . 1 1 . . Machines Repaired . | . . . . . . . . . . . . . . . Machines Dismantled . | . . . . . . . . . . . . . . . Machines Sabotaged . | . . . . . . . . . . . . . . . Overloaded Fab Kills . | . . . . . . . . . . . . . . . Hacking | -11 -10 -9 -9 -8 -7 -7 -7 -7 -6 -6 -6 -5 -5 -4 --------- Run | Yrd Mat Mat Min Mat Fac Low Low Zio Pro Fac Gar Fac DSF Fac Machines Accessed 6 | . . . . . 2 . . . . 3 . 1 . . Terminals 3 | . . . . . 1 . . . . 1 . 1 . . Fabricators 1 | . . . . . . . . . . 1 . . . . Repair Stations . | . . . . . . . . . . . . . . . Recycling Units 1 | . . . . . 1 . . . . . . . . . Scanalyzers . | . . . . . . . . . . . . . . . Garrison Access 1 | . . . . . . . . . . 1 . . . . Total Hacks 8 | . . . . . 2 . . . . 5 . 1 . . Successful 6 | . . . . . 2 . . . . 3 . 1 . . Failed 2 | . . . . . . . . . . 2 . . . . Catastrophic . | . . . . . . . . . . . . . . . Database Lockouts . | . . . . . . . . . . . . . . . Manual 11 | . . . . . 1 . . 2 . 8 . . . . Terminals 4 | . . . . . 1 . . . . 2 . 1 . . Fabricators 1 | . . . . . . . . . . 1 . . . . Repair Stations . | . . . . . . . . . . . . . . . Recycling Units 1 | . . . . . 1 . . . . . . . . . Scanalyzers . | . . . . . . . . . . . . . . . Garrison Access 2 | . . . . . . . . . . 2 . . . . Terminal Hacks 2 | . . . . . . . . . . 1 . 1 . . Open DSF 2 | . . . . . . . . . . 1 . 1 . . Fabricator Hacks 1 | . . . . . . . . . . 1 . . . . Build 1 | . . . . . . . . . . 1 . . . . Repair Station Hacks . | . . . . . . . . . . . . . . . Recycling Unit Hacks 1 | . . . . . 1 . . . . . . . . . Report Inventory 1 | . . . . . 1 . . . . . . . . . Scanalyzer . | . . . . . . . . . . . . . . . Garrison Access Hacks 1 | . . . . . . . . . . 1 . . . . Unlock Access 1 | . . . . . . . . . . 1 . . . . Unauthorized Hacks 1 | . . . . . 1 . . . . . . . . . Terminals 1 | . . . . . 1 . . . . . . . . . Assimilate 1 | . . . . . 1 . . . . . . . . . Fabricators . | . . . . . . . . . . . . . . . Repair Stations . | . . . . . . . . . . . . . . . Recycling Units . | . . . . . . . . . . . . . . . Scanalyzers . | . . . . . . . . . . . . . . . Garrison Access . | . . . . . . . . . . . . . . . Data Cores Recovered . | . . . . . . . . . . . . . . . Used . | . . . . . . . . . . . . . . . Hacking Detections 3 | . . . . . 1 . . . . 2 . . . . Full Trace Events . | . . . . . . . . . . . . . . . Feedback Events . | . . . . . . . . . . . . . . . Feedback Blocked . | . . . . . . . . . . . . . . . Robot Schematics Acquired . | . . . . . . . . . . . . . . . Robots Built . | . . . . . . . . . . . . . . . Authchips . | . . . . . . . . . . . . . . . Time . | . . . . . . . . . . . . . . . Total Robot Build Rating . | . . . . . . . . . . . . . . . Part Schematics Acquired . | . . . . . . . . . . . . . . . Parts Built 2 | . . . . . . . . . . 2 . . . . Authchips . | . . . . . . . . . . . . . . . Time 53 | . . . . . . . . . . 53 . . . . Total Part Build Rating 12 | . . . . . . . . . . 12 . . . . Parts Repaired . | . . . . . . . . . . . . . . . Time . | . . . . . . . . . . . . . . . Parts Recycled . | . . . . . . . . . . . . . . . Recycled Matter . | . . . . . . . . . . . . . . . Retrieved Matter . | . . . . . . . . . . . . . . . Retrieved Components . | . . . . . . . . . . . . . . . Parts Scanalyzed . | . . . . . . . . . . . . . . . Part Schematics Acquired . | . . . . . . . . . . . . . . . Parts Damaged . | . . . . . . . . . . . . . . . Bothacking | -11 -10 -9 -9 -8 -7 -7 -7 -7 -6 -6 -6 -5 -5 -4 ------------ Run | Yrd Mat Mat Min Mat Fac Low Low Zio Pro Fac Gar Fac DSF Fac Used RIF Installer . | . . . . . . . . . . . . . . . Robots Hacked . | . . . . . . . . . . . . . . . Non-combat . | . . . . . . . . . . . . . . . Combat . | . . . . . . . . . . . . . . . Robot Hacks Applied . | . . . . . . . . . . . . . . . Relay Couplers Released . | . . . . . . . . . . . . . . . Fabnet Peak Effective % . | . . . . . . . . . . . . . . . Robots Rewired . | . . . . . . . . . . . . . . . Allies Hacked . | . . . . . . . . . . . . . . . Hacks Repelled . | . . . . . . . . . . . . . . . Allies | -11 -10 -9 -9 -8 -7 -7 -7 -7 -6 -6 -6 -5 -5 -4 -------- Run | Yrd Mat Mat Min Mat Fac Low Low Zio Pro Fac Gar Fac DSF Fac Total Allies 13 | . . . 3 . . . . 4 . 6 . . . . Largest Group 5 | . . . 3 . . . . 4 4 5 4 . . . Highest-Rated Group 312 | . . . 40 . . . . 156 156 312 242 . . . Highest-Rated Ally 70 | . . . 16 . . . . 39 39 70 70 . . . Zionite Dispatches 2 | . . . . . . . . . . 2 . . . . Light 2 | . . . . . . . . . . 2 . . . . Total Orders . | . . . . . . . . . . . . . . . Ally Attacks 57 | . . . 12 . . . . . 24 16 5 . . . Total Damage 821 | . . . 156 . . . . . 321 286 58 . . . Kills 7 | . . . 4 . . . . . . 3 . . . . Allies Corrupted . | . . . . . . . . . . . . . . . Allies Melted . | . . . . . . . . . . . . . . . Intel | -11 -10 -9 -9 -8 -7 -7 -7 -7 -6 -6 -6 -5 -5 -4 ------- Run | Yrd Mat Mat Min Mat Fac Low Low Zio Pro Fac Gar Fac DSF Fac Robot Analysis Total . | . . . . . . . . . . . . . . . Derelict Logs Recovered 3 | . . . . . . 1 . 1 1 . . . . . Drone Launches . | . . . . . . . . . . . . . . . Drone Recoveries . | . . . . . . . . . . . . . . . Zionite Intel Received 1 | . . . . . . . . . . 1 . . . . Emergency Access 1 | . . . . . . . . . . 1 . . . . Exploration | -11 -10 -9 -9 -8 -7 -7 -7 -7 -6 -6 -6 -5 -5 -4 ------------- Run | Yrd Mat Mat Min Mat Fac Low Low Zio Pro Fac Gar Fac DSF Fac Turns Passed 5240 | 82 152 258 229 154 476 285 341 1549 681 464 77 12 37 443 Spaces Moved 5074 | 60 116 180 382 244 590 378 346 1180 482 554 125 22 85 330 Core 72 | 14 . . . . . . . . 38 11 . . . 9 Treads 89 | . . 10 . . . . . . 79 . . . . . Legs 2076 | 41 116 7 6 . . . 145 1180 365 . . . . 216 Wheels 149 | 5 . 123 . . . . . . . 21 . . . . Hover 2100 | . . . . 74 590 378 201 . . 522 125 22 85 103 Flight 588 | . . 40 376 170 . . . . . . . . . 2 Fastest Speed 31 | 50 120 31 31 44 56 64 76 120 50 40 40 44 44 35 Average Speed 88 | 108 120 81 40 46 69 69 96 125 126 61 41 44 44 103 Slowest Speed 550 | 190 120 160 120 56 78 76 120 126 200 100 44 44 44 550 Overloaded Moves . | . . . . . . . . . . . . . . . Propulsion Burnouts . | . . . . . . . . . . . . . . . Robots Hopped 9 | . . 3 6 . . . . . . . . . . . Cave-ins Triggered . | . . . . . . . . . . . . . . . Exploration Rate (%) 39 | 3 37 29 87 27 14 62 52 89 60 18 29 1 80 8 Regions Visited 14 Branch Regions 5 Pre-discovered Areas 1 | . . . . . . . . 1 . . . . . . Known Exits Taken 4 | . . . . . . 1 . . 1 1 . 1 . . Unknown Exits Taken 8 | 1 1 1 1 1 1 . 1 1 . . . . . . Scrap Searched 14 | . . . 2 . . 3 3 5 1 . . . . . Spaces Dug . | . . . . . . . . . . . . . . . Terrain Destroyed 106 | . . . 47 3 . 37 . . 19 . . . . . Melee . | . . . . . . . . . . . . . . . Projectile 3 | . . . . 3 . . . . . . . . . . AOE 103 | . . . 47 . . 37 . . 19 . . . . . Terrain Rammed . | . . . . . . . . . . . . . . . Walls Destroyed . | . . . . . . . . . . . . . . . Machines Disabled . | . . . . . . . . . . . . . . . Actions | -11 -10 -9 -9 -8 -7 -7 -7 -7 -6 -6 -6 -5 -5 -4 --------- Run | Yrd Mat Mat Min Mat Fac Low Low Zio Pro Fac Gar Fac DSF Fac Total 5579 | 75 121 237 425 274 643 390 350 1246 521 665 139 22 84 387 Wait 181 | . . 6 13 . 18 . . 56 5 76 7 . . . Move 5043 | 59 115 173 370 243 589 377 345 1179 481 553 124 21 84 330 Hop 8 | . . 3 5 . . . . . . . . . . . Pick Up 58 | 9 2 8 7 8 7 1 1 3 2 5 . . . 5 Fast Attach 41 | 3 . 1 2 . 5 1 3 4 3 14 . . . 5 Attach 41 | 3 . 10 9 3 3 1 1 . 1 5 . . . 5 Detach 3 | . . 1 . . . . . . . 1 . . . 1 Swap 21 | 1 . 3 . 5 6 1 . . 4 . 1 . . . Drop 37 | . . 2 2 6 7 . . 4 5 7 . . . 4 Fire 75 | . 4 30 10 9 4 9 . . 3 . 4 1 . 1 Melee 63 | . . . 7 . 4 . . . 17 4 3 . . 28 Ram . | . . . . . . . . . . . . . . . Kick . | . . . . . . . . . . . . . . . Crush . | . . . . . . . . . . . . . . . Escape Stasis 8 | . . . . . . . . . . . . . . 8 Rewire . | . . . . . . . . . . . . . . . Trap . | . . . . . . . . . . . . . . . Miscellaneous . | . . . . . . . . . . . . . . . Route ------- -11/Scrapyard -10/Materials -9/Materials -9/Mines (discovered 2 exits: [*Mat] / [*Exi]) -8/Materials -7/Factory -7/Lower Caves -7/Lower Caves (discovered 2 exits: *Fac / *Zio) -7/Zion -6/Proximity Caves -6/Factory (discovered 3 exits: [*Low x2] / Gar) -6/Garrison -5/Factory -5/DSF -4/Factory History --------- Turn | Location | Event 27 | -11/Scrapyard | Discovered new exit (range 16) 83 | -11/Scrapyard | Entered Materials 226 | -10/Materials | Discovered new exit (range 9) 235 | -10/Materials | Entered another Materials area 235 | -9/Materials | Evolved 2 slots: Propulsion x2 304 | -9/Materials | Build established: Mutant 455 | -9/Materials | Core integrity fell below 50% 482 | -9/Materials | Destroyed 12 combat bots 487 | -9/Materials | Discovered new exit (range 14) 493 | -9/Materials | Entered Mines 500 | -9/Mines | Found a damaged Exp. Sensor Array with a note attached 500 | -9/Mines | Found Prototype Device 501 | -9/Mines | Identified Exp. Sensor Array 521 | -9/Mines | Lost 10 parts (2p4n1u3w) 535 | -9/Mines | Assembled infested the area 540 | -9/Mines | Met a Derelict bent on vengeance 540 | -9/Mines | Assisted by a Guerilla fighting off Assembled 575 | -9/Mines | Core integrity fell below 20% 591 | -9/Mines | Lost 5 parts (1p3n1u) 593 | -9/Mines | Lost 3 allies 615 | -9/Mines | Assisted by bots powering up and referring to "LRC-V3" 716 | -9/Mines | Discovered new exit (range 2) 720 | -9/Mines | Deemed a non-threat by the Exiles lab entrance 720 | -9/Mines | Discovered new exit (range 5) 722 | -9/Mines | Entered Materials 722 | -8/Materials | Evolved 2 slots: Power x1, Utility x1 866 | -8/Materials | Discovered new exit (range 15) 876 | -8/Materials | Entered Factory 876 | -7/Factory | Evolved 2 slots: Propulsion x2 882 | -7/Factory | Lost 3 parts (1p2n) 1344 | -7/Factory | Discovered new exit (range 4) 1352 | -7/Factory | Entered Lower Caves 1593 | -7/Lower Caves | Identified exit to Lower Caves 1605 | -7/Lower Caves | Lost 3 parts (2n1u) 1637 | -7/Lower Caves | Entered another Lower Caves area 1685 | -7/Lower Caves | Discovered new exit (range 8) 1778 | -7/Lower Caves | Spotted B-75 Beast 1861 | -7/Lower Caves | Lost 4 parts (1p2n1w) 1929 | -7/Lower Caves | Discovered new exit (range 9) 1978 | -7/Lower Caves | Entered Zion 2136 | -7/Zion | Build established: Derelict-Mutant 2213 | -7/Zion | Found CR-A16's Pointy Stick 2238 | -7/Zion | Learned location of Armory (-3) 2264 | -7/Zion | Learned Factory terminal intel 2541 | -7/Zion | Imprinted 2543 | -7/Zion | Declared Zion's savior 2864 | -7/Zion | Learned location of 1 exit from Lower Caves 2867 | -7/Zion | Received a visual enhancement algorithm 3460 | -7/Zion | Given A8's code to call for help 3488 | -7/Zion | Discovered new exit (range 8) 3527 | -7/Zion | Entered Proximity Caves 3527 | -6/Proximity Caves | Accompanied by 4 allies 3536 | -6/Proximity Caves | Identified exit to Factory 3555 | -6/Proximity Caves | Attracted the attention of an 0b10 checkpoint 3919 | -6/Proximity Caves | Spotted B-75 Beast 3947 | -6/Proximity Caves | Revealed the true nature of CR-A16's Pointy Stick 3947 | -6/Proximity Caves | Destroyed B-75 Beast 4166 | -6/Proximity Caves | Core integrity fell below 50% 4195 | -6/Proximity Caves | Core integrity fell below 20% 4208 | -6/Proximity Caves | Entered Factory 4208 | -6/Factory | Evolved 2 slots: Utility x1, Weapon x1 4209 | -6/Factory | Loaded intel: 26 terminal locations 4220 | -6/Factory | Lost 10 parts (3p5n1u1w) 4266 | -6/Factory | Discovered new exit (range 15) 4338 | -6/Factory | Fabricated Neutrino Core (x2) 4405 | -6/Factory | Zion Light squad teleported in 4447 | -6/Factory | Discovered new exit (range 7) 4506 | -6/Factory | Retrieved Zion intel report: Emergency Access 4514 | -6/Factory | Build established: Hacker-Mutant 4642 | -6/Factory | Zion Light squad teleported in 4662 | -6/Factory | Identified exit to Garrison 4672 | -6/Factory | Entered Garrison 4672 | -6/Garrison | Accompanied by 4 allies 4694 | -6/Garrison | Spotted B-75 Beast 4696 | -6/Garrison | Triggered checkpoint 4698 | -6/Garrison | Destroyed B-75 Beast 4705 | -6/Garrison | Triggered checkpoint 4710 | -6/Garrison | Triggered checkpoint 4726 | -6/Garrison | Discovered new exit (range 8) 4749 | -6/Garrison | Entered Factory 4749 | -5/Factory | Evolved 2 slots: Power x1, Weapon x1 4751 | -5/Factory | Lost 4 allies 4761 | -5/Factory | Identified exit to DSF 4761 | -5/Factory | Entered DSF 4771 | -5/DSF | Assembled infested the area 4787 | -5/DSF | Additional patrols routed to DSF 4792 | -5/DSF | Discovered new exit (range 16) 4798 | -5/DSF | Entered Factory 4798 | -4/Factory | Evolved 2 slots: Propulsion x2 4950 | -4/Factory | Lost 6 parts (1p5n) 5220 | -4/Factory | Core integrity fell below 50% 5233 | -4/Factory | Core integrity fell below 20% 5241 | -4/Factory | Destroyed by Y-64 Sentinel with Wave Gun Last Messages --------------- 05234_ K-01 Serf collects debris. 05234_ Triggered Stasis Trap. 05234_ A bubble of rippling energy engulfs the area. 05234_ Field strength at 95. 05234_ Field strength at 84. 05235_ Penetrated by Slug. 05235_ Field strength at 68. 05236_ Field strength at 63. 05237_ K-01 Serf collects debris. 05237_ VTOL Module destroyed. 05237_ Field strength at 47. 05238_ Penetrated by Slug. 05238_ K-01 Serf collects debris. 05238_ Field strength at 20. 05239_ Field strength at 14. 05240_ K-01 Serf collects debris. 05240_ Critical hit (Burn: +26). 05240_ Stasis field depleted. 05241_ Critical hit (Burn: +50). 05241_ K-01 Serf destroyed. Map ----- +----------------------------------------------------+ | ??????????????????????? # " " " #?? | | ???????????????????????? # " " " #?? | | ????????????????????????" """ # " " " [[[#?"" | | ????????????????????????" """ # " " " [[[#?"" | | ????????????????????# """ """ + " " " [[ # "" | | ????????????????????# # " " " # "" | | ????????????????????# """ """ # " " " + | | ???????????????????????"" """ # " " " ! # "" | | ????????????????????????" """ # " " " # "" | | ???????????????????????? # #?"" | | ???????????????????????? # " " " " #?"" | | ???????????????????????########### " " " " #?? | | ?????????????????????????????????# " " " " #??# | | ?????????????????????????????????# " " " " #??? | | ?????????????????????????????????# " " " " #??? | | ?????????????????????????????????# " " " " #### | | ?????????????????????????????????# " " " " | | ?????????????????????????????????# " " " " # | | ?????????????????????????????????# " " " " # | | ?????????????????????????????????# # | | ?????????????????????????????????# " " " " # | | ???????????????????F?????????????# " " " " # | | ????????????????????" ???????????# " " " " # | | ?????????? #########+########### " " " " # | | ????????? Y= %= " " " " | | ????????? k@[=^ g " " " " | | ????????? u /% %* " " " " | | ????????? ""%%* % " " " " | | ????????? """% = " " " " | | ?????????? ^ """" g | | ???????????? A """ | | ????????????######## "" F"" | | ???????????????????# """""" | | ???????????????????# """" | | ???????????????????# | | ???????????????????# | | ???????????????????############### ########### | | ?????????????????????????????????? #?????????? | | ?????????????????????????????????? #?????????? | | ?????????????????????????????????? +?????????? | | ?????????????????????????????????? #?????????? | | ?????????????????????????????????? #?????????? | | ?????????????????????????????????? #?????????? | | ??????????????????????????????????##+#+#?????????? | | ?????????????????????????????????????????????????? | | ?????????????????????????????????????????????????? | | ?????????????????????????????????????????????????? | | ?????????????????????????????????????????????????? | | ?????????????????????????????????????????????????? | | ?????????????????????????????????????????????????? | +----------------------------------------------------+ Best States ------------- Heat Dissipation 43 Energy Generation 47 Energy Capacity 505 Matter Stores 300 Matter Capacity 300 Sight Range 16 Robot Scan Range 20 Terrain Scan Density 10 Jamming Range 14 Additional Mass Support 6 Armor Coverage 150 Evasion (%) 63 Targeting Accuracy 8 Recoil Reduction 2 Offensive Hacking 10 Defensive Hacking 10 Authchip Count 1 Item Schematics ----------------- None Robot Schematics ------------------ None Fabricated ------------ Neutrino Core | x2 | -6/Factory | Preloaded Alien Tech Used ----------------- None Achievements -------------- None Challenges ------------ None Game ------ Seed MissileImprinterDetector Manual? 0 Play Time 01:08:05 Cumulative 108.3 hours Start 2024.07.19 @ 16:04:41 End 2024.07.19 @ 18:02:07 Sessions 1 Manual Loads 0 Difficulty Rogue Special Mode None Game No. 153 Rogue 153 Adventurer 0 Explorer 0 Win Type - Total 0 Types 0/0/0/0/0/0/0/0/0 Lore% 44 Gallery% 58 Achievement% 37 Wizard Run 0 Options --------- Layout 0 ASCII 0 Keyboard 0 Movement Mouse Keybinds 0 Fullscreen 1 Font 24/Smallcaps Map View 76x50 Zoom Use 0% Tactical HUD 1 Map Filters NONE Filters NONE Steam 1 RUN: fcaa00b1-2acc-4e40-9d5b-9298912d1b7e